bitfinex-derivatives/quotes_BTCF0:USTF0_20241010
["timestamp","ask_amount","ask_price","bid_price","bid_amount"]
[1728571065644,0.216534,60638.0,60637.0,0.084536]
[1728571066737,0.134,60638.0,60637.0,0.084536]
[1728571067138,0.216534,60638.0,60637.0,0.084536]
[1728571067338,0.024,60638.0,60637.0,0.084536]
[1728571067947,0.0004,60641.0,60637.0,0.579296]
[1728571068144,0.0004,60641.0,60640.0,0.082532]
[1728571068450,0.082506,60659.0,60639.0,0.29]
[1728571068451,0.3608,60652.0,60651.0,0.082517]
[1728571068633,0.444302,60662.0,60651.0,0.372517]
[1728571068837,0.082508,60659.0,60658.0,0.082506]
[1728571069038,0.3608,60660.0,60651.0,0.29]
[1728571069242,0.09692195,60662.0,60655.0,0.3608]
[1728571069435,0.21596195,60662.0,60661.0,0.082503]
[1728571069636,0.09596195,60662.0,60661.0,0.082503]
[1728571069835,0.082503,60662.0,60661.0,0.082503]
[1728571070037,0.0825,60663.0,60659.0,0.082506]
[1728571070242,0.014,60660.0,60659.0,0.082506]
[1728571070444,0.096504,60660.0,60659.0,0.082506]
[1728571070650,0.372504,60660.0,60659.0,0.082506]
[1728571071045,0.29,60660.0,60659.0,0.082506]
[1728571071448,0.492504,60660.0,60655.0,0.001]
[1728571071653,0.492504,60660.0,60656.0,0.08251]
[1728571071654,0.08251,60657.0,60656.0,0.08251]
[1728571071844,0.37251,60657.0,60656.0,0.08251]
[1728571072247,0.082521,60648.0,60647.0,0.120121]
[1728571072442,0.372521,60648.0,60647.0,0.120122]
[1728571072748,0.482521,60648.0,60647.0,0.082522]
[1728571073647,0.482521,60648.0,60647.0,0.086522]
[1728571075062,0.482521,60648.0,60647.0,0.091522]
[1728571075554,0.482521,60648.0,60647.0,0.087522]
[1728571075861,0.402,60648.0,60647.0,0.083522]
[1728571076253,0.484521,60648.0,60647.0,0.082522]
[1728571078050,0.402,60648.0,60647.0,0.082522]
[1728571078250,0.484521,60648.0,60647.0,0.082522]
[1728571079055,0.082528,60643.0,60642.0,0.0004]
[1728571079359,0.843328,60643.0,60642.0,0.082929]
[1728571081755,0.843328,60643.0,60642.0,0.0004]
[1728571081958,0.843328,60643.0,60640.0,0.0004]
[1728571081959,1.938048,60643.0,60640.0,0.0004]
[1728571082148,1.938048,60643.0,60633.0,0.082541]
[1728571082149,0.082536,60637.0,60633.0,0.082541]
[1728571082353,0.73374,60634.0,60633.0,0.082541]
[1728571082556,0.83374,60634.0,60633.0,0.082541]
[1728571082755,0.7512,60634.0,60633.0,0.082541]
[1728571083359,0.83374,60634.0,60633.0,0.083541]
[1728571083561,0.7512,60634.0,60633.0,0.083541]
[1728571084061,0.4612,60634.0,60633.0,0.083541]
[1728571084549,0.0004,60634.0,60633.0,0.083541]
[1728571085160,0.0004,60634.0,60633.0,0.578301]
[1728571085473,0.0004,60634.0,60633.0,1.177301]
[1728571085661,0.0004,60634.0,60633.0,1.538101]
[1728571085662,0.0024,60634.0,60633.0,1.538101]
[1728571086752,0.0004,60634.0,60633.0,1.543101]
[1728571086958,0.0004,60641.0,60640.0,0.082532]
[1728571087158,0.0004,60641.0,60640.0,0.443332]
[1728571087658,0.29,60655.0,60640.0,0.443332]
[1728571087659,0.082512,60655.0,60654.0,0.082511]
[1728571087865,0.182512,60655.0,60654.0,0.082511]
[1728571088062,0.03187982,60655.0,60654.0,0.082511]
[1728571088257,0.3608,60656.0,60655.0,0.082511]
[1728571088454,0.443301,60663.0,60662.0,0.082502]
[1728571088660,0.47517686,60663.0,60662.0,0.082502]
[1728571088857,0.3608,60663.0,60662.0,0.082502]
[1728571089655,0.0004,60664.0,60663.0,0.0825]
[1728571090464,0.0004,60664.0,60663.0,0.4433]
[1728571090665,0.0004,60664.0,60663.0,0.0825]
[1728571091172,0.0004,60664.0,60663.0,0.0835]
[1728571091667,0.372899,60664.0,60663.0,0.0835]
[1728571092169,0.374899,60664.0,60663.0,0.0845]
[1728571092575,0.374899,60664.0,60663.0,0.002]
[1728571092766,0.374899,60664.0,60663.0,0.001]
[1728571093260,0.372899,60664.0,60656.0,0.40952684]
[1728571093458,0.374899,60664.0,60663.0,0.001]
[1728571093663,0.374899,60664.0,60663.0,0.0835]
[1728571093874,0.372899,60664.0,60663.0,0.0825]
[1728571094059,0.374899,60664.0,60663.0,0.0835]
[1728571094265,0.374899,60664.0,60663.0,0.002]
[1728571095481,0.372899,60664.0,60663.0,0.0835]
[1728571095769,0.0024,60664.0,60663.0,0.0845]
[1728571097370,0.0024,60664.0,60663.0,0.0835]
[1728571098465,0.0024,60664.0,60663.0,0.0825]
[1728571100364,0.0024,60664.0,60663.0,0.2725]
[1728571101376,0.0004,60669.0,60663.0,1.28452]
[1728571101675,0.0004,60669.0,60668.0,0.082494]
[1728571101877,0.272892,60669.0,60668.0,0.082494]
[1728571102271,0.082499,60666.0,60665.0,0.082497]
[1728571102466,0.382499,60666.0,60665.0,0.082497]
[1728571103578,0.384499,60666.0,60665.0,0.083497]
[1728571104174,0.112,60666.0,60665.0,0.083497]
[1728571104373,0.002,60666.0,60665.0,0.083497]
[1728571109872,0.084496,60666.0,60665.0,0.083497]
[1728571110072,0.555296,60666.0,60665.0,0.001]
[1728571110276,0.082499,60664.0,60663.0,0.0004]
[1728571110479,0.492499,60664.0,60663.0,0.0004]
[1728571111180,0.7708,60664.0,60646.0,0.3608]
[1728571111381,0.7708,60664.0,60652.0,0.082515]
[1728571111382,0.082514,60653.0,60652.0,0.082515]
[1728571111582,0.202514,60653.0,60652.0,0.082515]
[1728571111777,0.23439522,60653.0,60652.0,0.082515]
[1728571112280,0.082518,60651.0,60649.0,0.082518]
[1728571112486,0.3222821,60650.0,60649.0,0.082518]
[1728571112675,0.4048001,60650.0,60649.0,0.082518]
[1728571113081,0.3222821,60650.0,60649.0,0.082518]
[1728571113285,0.2904,60650.0,60649.0,0.082518]
[1728571113875,0.374918,60650.0,60649.0,0.082518]
[1728571114083,0.2924,60650.0,60649.0,0.082518]
[1728571114480,0.40679894,60650.0,60649.0,0.082518]
[1728571115498,0.40579894,60650.0,60649.0,0.082518]
[1728571116386,0.32328094,60650.0,60649.0,0.082518]
[1728571117279,0.2914,60650.0,60649.0,0.082518]
[1728571118377,0.373918,60650.0,60649.0,0.082518]
[1728571118579,0.373918,60650.0,60642.0,0.01331259]
[1728571118580,0.082523,60647.0,60642.0,0.01331259]
[1728571118786,0.082523,60647.0,60646.0,0.082522]
[1728571120082,0.082523,60647.0,60643.0,0.082524]
[1728571120083,0.082528,60644.0,60643.0,0.082524]
[1728571120283,0.482528,60644.0,60643.0,0.082524]
[1728571121988,0.482528,60644.0,60630.0,0.0358]
[1728571122194,0.482528,60644.0,60639.0,0.082532]
[1728571122195,0.08253,60641.0,60639.0,0.082532]
[1728571122397,0.08253,60641.0,60640.0,0.082932]
[1728571122398,0.20253,60641.0,60640.0,0.082932]
[1728571122902,0.12,60641.0,60640.0,0.082932]
[1728571123495,0.36188001,60647.0,60646.0,0.082523]
[1728571123685,0.3608,60647.0,60646.0,0.082523]
[1728571123893,0.0004,60650.0,60649.0,0.082519]
[1728571124088,0.0004,60650.0,60649.0,0.372519]
[1728571124397,0.3608,60660.0,60649.0,1.467159]
[1728571124603,0.3608,60660.0,60659.0,0.082506]
[1728571125393,0.443304,60660.0,60659.0,0.082506]
[1728571125789,0.3608,60660.0,60651.0,0.3608]
[1728571125991,0.29,60652.0,60649.0,0.0004]
[1728571126196,0.29,60652.0,60651.0,0.082517]
[1728571126392,0.19,60653.0,60649.0,0.0004]
[1728571126588,0.272509,60657.0,60656.0,0.082509]
[1728571126893,0.082514,60654.0,60649.0,0.3612]
[1728571127094,0.272509,60657.0,60656.0,0.08251]
[1728571127293,0.372509,60657.0,60656.0,0.08251]
[1728571127899,0.372509,60657.0,60653.0,0.082513]
[1728571127900,0.082514,60654.0,60653.0,0.082513]
[1728571128099,0.272514,60654.0,60653.0,0.082513]
[1728571128296,0.19,60654.0,60653.0,0.082513]
[1728571129295,0.272513,60654.0,60653.0,0.082513]
[1728571129799,0.191,60654.0,60653.0,0.083513]
[1728571131900,0.191,60654.0,60653.0,0.082513]
[1728571132293,0.19,60654.0,60653.0,0.082513]
[1728571132494,0.001,60654.0,60653.0,0.082513]
[1728571132799,0.117294,60668.0,60667.0,0.082495]
[1728571132993,0.192494,60668.0,60667.0,0.082495]
[1728571133596,0.082494,60668.0,60667.0,0.082495]
[1728571134001,0.1904,60669.0,60662.0,0.19]
[1728571134002,0.0004,60669.0,60668.0,0.082494]
[1728571135505,0.3612,60669.0,60668.0,0.082494]
[1728571135705,0.0004,60669.0,60668.0,0.083494]
[1728571135911,0.0004,60669.0,60668.0,0.084494]
[1728571137110,0.272892,60669.0,60668.0,0.084494]
[1728571137306,0.272892,60669.0,60668.0,0.002]
[1728571137706,0.272892,60669.0,60668.0,0.084494]
[1728571139322,0.0004,60669.0,60668.0,0.084494]
[1728571141728,0.0004,60669.0,60668.0,0.274494]
[1728571142022,0.11499438,60678.0,60675.0,0.082484]
[1728571142223,0.39267031,60676.0,60675.0,0.082484]
[1728571142629,0.39267031,60676.0,60671.0,0.0004]
[1728571142630,0.082488,60672.0,60671.0,0.082889]
[1728571142821,0.30435831,60672.0,60671.0,0.082889]
[1728571143018,0.41435831,60672.0,60671.0,0.082889]
[1728571143414,0.382488,60672.0,60671.0,0.082889]
[1728571143618,0.41435594,60672.0,60671.0,0.082889]
[1728571144224,0.41435594,60672.0,60671.0,0.0004]
[1728571144225,0.382488,60672.0,60671.0,0.0004]
[1728571144425,0.082496,60666.0,60665.0,0.082497]
[1728571144727,0.76556897,60666.0,60665.0,0.082497]
[1728571144930,0.32227297,60666.0,60665.0,0.082497]
[1728571145230,0.2904,60666.0,60665.0,0.082497]
[1728571145923,0.2904,60666.0,60665.0,0.273497]
[1728571145924,0.0004,60666.0,60665.0,0.273497]
[1728571146425,0.272896,60666.0,60665.0,0.082497]
[1728571146621,0.272896,60666.0,60665.0,0.083497]
[1728571147627,0.082896,60666.0,60665.0,0.083497]
[1728571148323,0.0004,60666.0,60665.0,0.083497]
[1728571150124,0.0004,60666.0,60665.0,0.273497]
[1728571150333,0.082485,60675.0,60665.0,0.768417]
[1728571150525,0.082485,60675.0,60674.0,0.082485]
[1728571151320,0.08249,60671.0,60669.0,0.082491]
[1728571152226,0.19,60673.0,60666.0,0.0387]
[1728571152436,0.082488,60672.0,60671.0,0.082489]
[1728571153529,0.272487,60673.0,60672.0,0.082488]
[1728571154329,0.082491,60670.0,60669.0,0.082492]
[1728571154534,0.082491,60670.0,60669.0,0.083492]
[1728571154535,0.382491,60670.0,60669.0,0.083492]
[1728571154830,0.11,60670.0,60669.0,0.083492]
[1728571155032,0.082487,60673.0,60672.0,0.082488]
[1728571155232,0.082487,60673.0,60672.0,0.083488]
[1728571155233,0.182487,60673.0,60672.0,0.083488]
[1728571158937,0.0004,60678.0,60672.0,0.634288]
[1728571159123,0.0004,60678.0,60677.0,0.633281]
[1728571160624,0.0004,60678.0,60677.0,0.634281]
[1728571160819,0.0004,60678.0,60677.0,1.918681]
[1728571161023,0.0004,60678.0,60677.0,1.728681]
[1728571161632,0.0004,60685.0,60684.0,0.082472]
[1728571161829,0.0004,60685.0,60684.0,0.633272]
[1728571162329,0.01356353,60694.0,60693.0,0.082457]
[1728571162330,0.082459,60694.0,60693.0,0.082457]
[1728571162530,0.07224775,60694.0,60693.0,0.19]
[1728571162732,0.07224775,60694.0,60693.0,0.27246]
[1728571163522,0.15470575,60694.0,60693.0,0.27246]
[1728571163727,0.15470575,60694.0,60693.0,0.27346]
[1728571164130,0.15470575,60694.0,60693.0,0.27446]
[1728571164437,0.07224775,60694.0,60693.0,0.27446]
[1728571164639,0.14685077,60694.0,60693.0,0.27446]
[1728571164837,0.36176,60697.0,60696.0,0.082456]
[1728571164838,0.11500408,60697.0,60696.0,0.082456]
[1728571165028,0.13147593,60705.0,60696.0,0.19]
[1728571165229,0.3608,60708.0,60704.0,0.19]
[1728571165429,0.3608,60708.0,60699.0,0.3608]
[1728571165430,0.082447,60702.0,60701.0,0.19]
[1728571165629,0.272447,60702.0,60696.0,0.082455]
[1728571165832,0.082458,60694.0,60693.0,0.084459]
[1728571166126,0.082458,60694.0,60693.0,0.003]
[1728571166127,0.382458,60694.0,60693.0,0.003]
[1728571166330,0.272458,60694.0,60693.0,0.002]
[1728571166740,0.272458,60694.0,60689.0,0.082464]
[1728571166941,0.19,60691.0,60687.0,0.3608]
[1728571167134,0.0843,60697.0,60690.0,0.082464]
[1728571167135,0.19,60694.0,60690.0,0.082464]
[1728571167437,0.19,60694.0,60693.0,0.001]
[1728571167438,0.082458,60694.0,60693.0,0.001]
[1728571167642,0.272458,60694.0,60693.0,0.001]
[1728571168734,0.342458,60694.0,60693.0,0.001]
[1728571168933,0.342458,60694.0,60693.0,0.002]
[1728571168934,0.74364759,60694.0,60693.0,0.002]
[1728571169131,0.08247,60685.0,60684.0,0.0004]
[1728571169336,0.63327,60685.0,60684.0,0.0004]
[1728571170238,1.84763,60685.0,60684.0,0.0004]
[1728571170439,1.84763,60685.0,60677.0,0.0004]
[1728571170440,0.08248,60678.0,60677.0,0.0004]
[1728571170637,0.75328,60678.0,60677.0,0.0004]
[1728571171244,0.56328,60678.0,60677.0,0.0004]
[1728571172643,0.56328,60678.0,60677.0,0.0014]
[1728571172644,0.85328,60678.0,60677.0,0.0014]
[1728571173035,0.85528,60678.0,60677.0,0.0024]
[1728571173333,0.3628,60678.0,60677.0,0.084881]
[1728571174139,0.082472,60684.0,60677.0,0.0024]
[1728571174341,0.082477,60681.0,60680.0,0.082477]
[1728571174733,0.082472,60684.0,60677.0,0.0014]
[1728571174937,0.082473,60683.0,60677.0,0.084881]
[1728571175139,0.082478,60680.0,60677.0,0.084881]
[1728571175344,0.082478,60680.0,60677.0,0.0024]
[1728571175345,0.73328,60678.0,60677.0,0.0024]
[1728571175543,0.84328,60678.0,60677.0,0.0024]
[1728571175848,0.84428,60678.0,60677.0,0.0014]
[1728571176040,0.87615027,60678.0,60677.0,0.0014]
[1728571176233,0.87515027,60678.0,60677.0,0.0004]
[1728571176437,0.87515027,60678.0,60677.0,0.0014]
[1728571176849,1.8552,60678.0,60666.0,0.082496]
[1728571177045,0.372896,60667.0,60666.0,0.082496]
[1728571177236,0.0004,60667.0,60666.0,0.082496]
[1728571178847,0.0024,60667.0,60666.0,0.082496]
[1728571181646,0.084895,60667.0,60666.0,0.082496]
[1728571181841,0.0024,60667.0,60666.0,0.082496]
[1728571182750,0.0024,60667.0,60665.0,0.0004]
[1728571182940,0.082506,60659.0,60658.0,0.082507]
[1728571183248,0.39167604,60659.0,60658.0,0.082507]
[1728571183437,0.3598,60659.0,60658.0,0.082507]
[1728571183748,0.082506,60659.0,60658.0,0.082507]
[1728571183939,0.29,60661.0,60657.0,0.082508]
[1728571184144,0.29,60661.0,60655.0,0.08251]
[1728571184145,0.08251,60656.0,60655.0,0.08251]
[1728571184452,0.082504,60660.0,60652.0,0.3608]
[1728571184453,0.082514,60654.0,60652.0,0.443314]
[1728571184751,0.082514,60654.0,60653.0,0.082514]
[1728571185949,0.082514,60654.0,60652.0,0.3608]
[1728571185950,0.0389,60660.0,60652.0,0.3608]
[1728571186143,0.082509,60657.0,60656.0,0.082508]
[1728571186650,0.734223,60662.0,60655.0,0.29]
[1728571186651,0.082507,60659.0,60655.0,0.29]
[1728571186844,0.082507,60659.0,60658.0,0.082505]
[1728571187343,0.082507,60659.0,60653.0,0.017]
[1728571187539,0.733313,60654.0,60653.0,0.009]
[1728571187740,0.843313,60654.0,60653.0,0.009]
[1728571188443,0.082517,60651.0,60649.0,0.0004]
[1728571188651,0.372518,60650.0,60649.0,0.0004]
[1728571190845,1.50464,60650.0,60640.0,0.0004]
[1728571191041,0.37293,60641.0,60640.0,0.0004]
[1728571191837,0.73373,60641.0,60640.0,0.0004]
[1728571192041,0.73373,60641.0,60640.0,0.0034]
[1728571192752,0.73373,60641.0,60640.0,0.0054]
[1728571194046,0.84373,60641.0,60640.0,0.0054]
[1728571194551,0.48293,60641.0,60640.0,0.0054]
[1728571195851,0.48293,60641.0,60640.0,0.087932]
[1728571196354,0.37293,60641.0,60640.0,0.087932]
[1728571197155,0.08293,60641.0,60640.0,0.087932]
[1728571197448,0.08497814,60660.0,60640.0,1.75092]
[1728571197449,0.3608,60657.0,60640.0,1.75092]
[1728571197652,0.082513,60654.0,60653.0,0.082512]
[1728571197844,0.443309,60657.0,60656.0,0.08251]
[1728571198041,0.563309,60657.0,60656.0,0.08251]
[1728571198250,0.3608,60657.0,60656.0,0.08251]
[1728571199451,0.3608,60657.0,60649.0,0.082519]
[1728571199757,0.002,60654.0,60653.0,0.083514]
[1728571200249,0.3608,60663.0,60662.0,0.082502]
[1728571200551,0.082503,60662.0,60660.0,0.082503]
[1728571200745,0.3608,60663.0,60662.0,0.082502]
[1728571201251,0.4808,60663.0,60656.0,0.001]
[1728571201450,0.733309,60657.0,60656.0,0.001]
[1728571201654,0.082518,60650.0,60649.0,0.001]
[1728571201855,0.553318,60650.0,60649.0,0.001]
[1728571202148,0.08253,60641.0,60640.0,0.08580483]
[1728571202749,0.08253,60641.0,60640.0,0.083332]
[1728571202951,0.08253,60641.0,60640.0,0.0008]
[1728571203148,0.44333,60641.0,60640.0,0.0008]
[1728571203348,0.44333,60641.0,60640.0,0.0028]
[1728571203555,0.56333,60641.0,60640.0,0.0028]
[1728571203765,0.44333,60641.0,60640.0,0.0028]
[1728571204643,0.54333,60641.0,60640.0,0.0028]
[1728571206460,0.54333,60641.0,60640.0,0.0058]
[1728571206643,0.55868908,60641.0,60640.0,0.0058]
[1728571208447,0.08254,60634.0,60633.0,0.0004]
[1728571208648,0.08254,60634.0,60627.0,0.00247336]
[1728571208649,0.082548,60628.0,60627.0,0.00247336]
[1728571208847,0.563748,60628.0,60627.0,0.00247336]
[1728571209752,0.563748,60628.0,60627.0,0.00547336]
[1728571210349,0.563748,60628.0,60627.0,0.00247336]
[1728571210550,0.564748,60628.0,60627.0,0.00347336]
[1728571210952,0.854748,60628.0,60627.0,0.00347336]
[1728571212250,0.853748,60628.0,60627.0,0.00347336]
[1728571212452,0.857748,60628.0,60627.0,0.002]
[1728571212658,0.862748,60628.0,60627.0,0.002]
[1728571212850,0.858748,60628.0,60627.0,0.002]
[1728571213046,0.862748,60628.0,60627.0,0.002]
[1728571216150,0.861748,60628.0,60627.0,0.002]
[1728571216353,0.858748,60628.0,60627.0,0.002]
[1728571217065,0.856748,60628.0,60627.0,0.001]
[1728571217360,0.858748,60628.0,60627.0,0.002]
[1728571219155,0.3662,60628.0,60627.0,0.084549]
[1728571219351,0.3662,60628.0,60627.0,0.125149]
[1728571219556,0.0004,60634.0,60633.0,0.082541]
[1728571219762,0.443329,60642.0,60641.0,0.08253]
[1728571219763,0.3608,60642.0,60641.0,0.08253]
[1728571220556,0.11452342,60652.0,60641.0,1.17725]
[1728571220750,0.11452342,60652.0,60651.0,0.733317]
[1728571221355,0.11452342,60652.0,60651.0,0.443317]
[1728571221559,0.11452342,60652.0,60651.0,0.082517]
[1728571221850,0.11452342,60652.0,60645.0,0.3608]
[1728571222050,0.0004,60646.0,60643.0,0.19480432]
[1728571222249,0.29,60644.0,60643.0,0.19480432]
[1728571223062,0.29,60644.0,60643.0,0.27733232]
[1728571223363,0.29,60644.0,60643.0,0.19480432]
[1728571223559,0.372526,60644.0,60643.0,0.19580432]
[1728571224357,0.372526,60644.0,60643.0,0.001]
[1728571224761,0.29,60644.0,60643.0,0.001]
[1728571224968,0.29,60644.0,60643.0,0.083528]
[1728571225156,0.29,60644.0,60643.0,0.001]
[1728571225464,0.372526,60644.0,60643.0,0.002]
[1728571225963,0.29,60644.0,60643.0,0.084528]
[1728571226151,0.29,60644.0,60643.0,0.002]
[1728571226351,0.482526,60644.0,60643.0,0.002]
[1728571226551,0.08254,60634.0,60633.0,0.0004]
[1728571226767,0.29,60634.0,60633.0,0.082941]
[1728571227067,0.29,60637.0,60636.0,0.082537]
[1728571227560,0.29,60637.0,60633.0,0.0004]
[1728571227758,0.082539,60635.0,60633.0,0.0004]
[1728571228668,0.37254,60634.0,60633.0,0.0004]
[1728571228863,0.37254,60634.0,60633.0,0.0024]
[1728571229165,0.289,60634.0,60633.0,0.086941]
[1728571229559,0.37154,60634.0,60633.0,0.0044]
[1728571229968,0.289,60634.0,60633.0,0.086941]
[1728571230157,0.37154,60634.0,60633.0,0.0044]
[1728571230362,0.289,60634.0,60633.0,0.0044]
[1728571230872,0.289,60634.0,60633.0,0.086941]
[1728571231270,0.29,60638.0,60633.0,0.0044]
[1728571231472,0.29,60643.0,60633.0,0.0044]
[1728571231662,0.082531,60641.0,60633.0,0.0024]
[1728571231863,0.082531,60641.0,60633.0,0.0044]
[1728571232163,0.082526,60645.0,60643.0,0.082527]
[1728571232359,0.082533,60639.0,60633.0,0.0044]
[1728571232564,0.29,60638.0,60637.0,0.082535]
[1728571233772,0.082539,60635.0,60633.0,0.082941]
[1728571233972,0.29,60634.0,60633.0,0.0004]
[1728571234168,0.41,60634.0,60633.0,0.082941]
[1728571234374,0.083536,60638.0,60633.0,0.0004]
[1728571234570,0.193536,60638.0,60633.0,0.0004]
[1728571234773,0.111,60638.0,60637.0,0.082536]
[1728571235073,0.001,60638.0,60637.0,0.082536]
[1728571235371,0.002,60638.0,60637.0,0.082536]
[1728571235575,0.052,60638.0,60633.0,0.0004]
[1728571235774,0.37254,60634.0,60633.0,0.0024]
[1728571235975,0.47254,60634.0,60633.0,0.0024]
[1728571236375,0.47254,60634.0,60633.0,0.0004]
[1728571236763,0.39,60634.0,60633.0,0.084941]
[1728571236969,0.1,60634.0,60633.0,0.086941]
[1728571237165,0.082534,60639.0,60633.0,0.0044]
[1728571237378,0.192534,60639.0,60638.0,0.082534]
[1728571238478,0.11,60639.0,60638.0,0.082534]
[1728571238877,0.111,60639.0,60638.0,0.082534]
[1728571239364,0.112,60639.0,60638.0,0.082534]
[1728571240372,0.194533,60639.0,60638.0,0.082534]
[1728571240575,0.082535,60638.0,60635.0,0.082538]
[1728571240773,0.192535,60638.0,60635.0,0.082538]
[1728571241175,0.29,60636.0,60633.0,0.0004]
[1728571241474,0.08254,60634.0,60633.0,0.0004]
[1728571241673,0.19254,60634.0,60633.0,0.0004]
[1728571241874,0.11,60634.0,60633.0,0.082941]
[1728571242481,0.11,60634.0,60633.0,0.084941]
[1728571242883,0.11,60634.0,60633.0,0.086941]
[1728571243184,0.11,60634.0,60630.0,0.3608]
[1728571243185,0.082548,60628.0,60627.0,0.0004]
[1728571243377,0.553748,60628.0,60627.0,0.0004]
[1728571245184,0.553748,60628.0,60627.0,0.0034]
[1728571245385,0.553748,60628.0,60627.0,0.0064]
[1728571247378,0.553748,60628.0,60620.0,0.00247344]
[1728571247379,0.082549,60627.0,60620.0,0.00247344]
[1728571247583,0.6512,60621.0,60609.0,0.01507772]
[1728571247886,0.37297,60612.0,60611.0,0.082971]
[1728571248079,0.2904,60612.0,60611.0,0.082971]
[1728571249385,0.0004,60612.0,60611.0,0.082971]
[1728571249587,0.0004,60612.0,60611.0,0.089971]
[1728571249790,0.0004,60612.0,60611.0,0.096971]
[1728571250185,0.3612,60621.0,60611.0,1.191931]
[1728571250382,0.0004,60621.0,60620.0,0.082559]
[1728571250782,0.0004,60621.0,60620.0,1.219439]
[1728571251092,0.0004,60621.0,60620.0,0.082559]
[1728571251594,0.0024,60621.0,60620.0,0.082559]
[1728571252688,0.08256,60619.0,60612.0,0.3608]
[1728571252879,0.29,60616.0,60613.0,0.082568]
[1728571253079,0.082567,60614.0,60613.0,0.082568]
[1728571253284,0.082568,60613.0,60612.0,0.3608]
[1728571253487,0.0004,60613.0,60612.0,0.44337]
[1728571253981,0.0004,60613.0,60612.0,0.44937]
[1728571254594,0.0004,60613.0,60612.0,0.45537]
[1728571256294,0.082968,60613.0,60612.0,0.45537]
[1728571256493,0.0004,60613.0,60612.0,0.45537]
[1728571257698,0.082968,60613.0,60612.0,0.45537]
[1728571258197,0.082968,60613.0,60612.0,0.3728]
[1728571258997,0.082968,60613.0,60612.0,0.45537]
[1728571259697,0.0004,60613.0,60612.0,0.45537]
[1728571260095,0.00084,60620.0,60619.0,0.08256]
[1728571260399,0.11,60620.0,60619.0,0.08256]
[1728571261390,0.401,60620.0,60619.0,0.08256]
[1728571261802,0.001,60620.0,60619.0,0.08256]
[1728571261994,0.3269,60628.0,60627.0,0.082549]
[1728571262296,0.444167,60644.0,60637.0,0.082535]
[1728571262492,0.01632643,60645.0,60643.0,0.082528]
[1728571262696,0.082523,60647.0,60644.0,0.082526]
[1728571262895,0.29,60645.0,60644.0,0.082526]
[1728571263093,0.372525,60645.0,60644.0,0.082526]
[1728571264097,0.372525,60645.0,60643.0,0.3608]
[1728571264395,0.082531,60641.0,60639.0,0.082533]
[1728571264597,0.29,60641.0,60639.0,0.443333]
[1728571264787,0.29,60641.0,60640.0,0.082532]
[1728571265588,0.0004,60644.0,60639.0,0.3608]
[1728571265800,0.0004,60644.0,60643.0,0.443328]
[1728571266098,0.29,60657.0,60656.0,0.08251]
[1728571266292,0.37,60657.0,60656.0,0.08251]
[1728571266487,0.452509,60657.0,60653.0,0.082514]
[1728571266891,0.37,60657.0,60653.0,0.082514]
[1728571267087,0.37,60657.0,60649.0,0.082518]
[1728571267299,0.29,60653.0,60645.0,0.082924]
[1728571267499,0.29,60646.0,60645.0,0.0004]
[1728571267694,0.482523,60646.0,60645.0,0.0004]
[1728571267900,0.843323,60646.0,60645.0,0.0004]
[1728571268302,1.338003,60646.0,60645.0,0.0004]
[1728571268903,0.843323,60646.0,60645.0,0.0004]
[1728571270002,0.848323,60646.0,60645.0,0.0014]
[1728571270390,0.115,60646.0,60645.0,0.0014]
[1728571270699,0.005,60646.0,60645.0,0.444725]
[1728571270902,0.005,60646.0,60645.0,1.539405]
[1728571271495,0.005,60646.0,60645.0,1.577405]
[1728571271696,0.005,60646.0,60645.0,1.578405]
[1728571271996,0.29,60654.0,60645.0,1.59354189]
[1728571272303,0.29,60654.0,60653.0,0.082514]
[1728571272500,0.29,60665.0,60652.0,0.29]
[1728571272693,0.409004,60661.0,60656.0,0.3608]
[1728571272893,0.409004,60661.0,60658.0,0.082507]
[1728571273099,0.082507,60658.0,60656.0,0.3608]
[1728571273300,0.29,60660.0,60657.0,0.082508]
[1728571273507,0.29,60664.0,60652.0,0.082515]
[1728571273704,0.39,60664.0,60663.0,0.0825]
[1728571274002,0.0004,60666.0,60665.0,0.082498]
[1728571274501,0.1004,60666.0,60663.0,0.3608]
[1728571274703,0.372499,60664.0,60663.0,0.3608]
[1728571274908,0.4,60664.0,60657.0,0.082508]
[1728571275209,0.372508,60658.0,60656.0,0.001]
[1728571275410,0.372508,60658.0,60656.0,0.44531]
[1728571275411,0.29,60657.0,60656.0,0.44531]
[1728571275599,0.29,60657.0,60656.0,0.08451]
[1728571276101,0.29,60657.0,60656.0,0.08251]
[1728571276610,0.492509,60657.0,60656.0,0.001]
[1728571277105,0.372509,60657.0,60656.0,0.001]
[1728571277803,0.492509,60657.0,60656.0,0.001]
[1728571278108,0.41,60657.0,60653.0,0.082514]
[1728571278299,0.497509,60657.0,60656.0,0.001]
[1728571278699,0.126,60657.0,60656.0,0.002]
[1728571278904,0.006,60657.0,60656.0,0.08451]
[1728571279103,0.006,60657.0,60656.0,0.44531]
[1728571279614,0.296,60657.0,60656.0,0.002]
[1728571279802,0.082513,60654.0,60653.0,0.001]
[1728571280120,0.7708,60654.0,60645.0,0.0004]
[1728571280411,0.372523,60646.0,60645.0,0.0004]
[1728571280599,0.082532,60641.0,60633.0,0.01490539]